lending/lending_fUSD_20240809
["ID","MTS","AMOUNT","RATE_DAILY","PERIOD"]
[334499691,1723169438973,-500.0,0.00024109,5]
[334499693,1723169438983,-1629.88,0.00024109,5]
[334499695,1723169438992,-500.0,0.00024109,5]
[334499697,1723169439002,-500.0,0.00024109,5]
[334499699,1723169439011,-500.0,0.00024109,5]
[334499701,1723169439022,-503.08292697,0.00024109,5]
[334499703,1723169439033,-500.0,0.00024109,5]
[334499705,1723169439043,-500.0,0.00024109,5]
[334499707,1723169439052,-1862.9,0.00024109,5]
[334499709,1723169439062,-500.0,0.00024109,5]
[334499711,1723169439071,-675.12,0.00024109,5]
[334499713,1723169439080,-500.0,0.00024109,5]
[334499715,1723169439089,-500.0,0.00024109,5]
[334499717,1723169439101,-351.84959533,0.00024109,5]
[334499719,1723169439111,-500.0,0.00024109,5]
[334499721,1723169439120,-500.0,0.00024109,5]
[334499723,1723169439130,-1813.33,0.00024109,5]
[334499725,1723169439139,-500.0,0.00024109,5]
[334499727,1723169439148,-500.0,0.00024109,5]
[334499729,1723169439157,-500.0,0.00024109,5]
[334499731,1723169439167,-500.0,0.00024109,5]
[334499733,1723169439176,-500.0,0.00024109,5]
[334499736,1723169439185,-500.0,0.00024109,5]
[334499738,1723169439195,-500.0,0.00024109,5]
[334499740,1723169439204,-500.0,0.00024109,5]
[334499742,1723169439214,-328.68744585,0.00024109,5]
[334499744,1723169439223,-500.0,0.00024109,5]
[334499746,1723169439233,-500.0,0.00024109,5]
[334499748,1723169439242,-500.0,0.00024109,5]
[334499750,1723169439251,-500.0,0.00024109,5]
[334499752,1723169439261,-500.0,0.00024109,5]
[334499754,1723169439270,-500.0,0.00024109,5]
[334499756,1723169439280,-500.0,0.00024109,5]
[334499758,1723169439290,-500.0,0.00024109,5]
[334499760,1723169439299,-500.0,0.00024109,5]
[334499762,1723169439308,-500.0,0.00024109,5]
[334499764,1723169439319,-500.0,0.00024109,5]
[334499766,1723169439328,-500.41829632,0.00024109,5]
[334499768,1723169439338,-559.86,0.00024109,5]
[334499770,1723169439347,-500.0,0.00024109,5]
[334499772,1723169439356,-500.0,0.00024109,5]
[334499774,1723169439366,-500.0,0.00024109,5]
[334499776,1723169439376,-500.0,0.00024109,5]
[334499778,1723169439385,-500.0,0.00024109,5]
[334499780,1723169439395,-500.0,0.00024109,5]
[334499782,1723169439404,-500.0,0.00024109,5]
[334499784,1723169439413,-500.0,0.00024109,5]
[334499786,1723169439422,-500.0,0.00024109,5]
[334499788,1723169439431,-500.0,0.00024109,5]
[334499790,1723169439441,-500.0,0.00024109,5]
[334499792,1723169439450,-500.0,0.00024109,5]
[334499794,1723169439459,-500.0,0.00024109,5]
[334499796,1723169439469,-500.0,0.00024109,5]
[334499798,1723169439478,-1115.79,0.00024109,5]
[334499800,1723169439487,-2618.81,0.00024109,5]
[334499802,1723169439496,-2320.16,0.00024109,5]
[334499804,1723169439505,-1133.13,0.00024109,5]
[334499806,1723169439518,-1043.66,0.00024109,5]
[334499808,1723169439527,-2512.93,0.00024109,5]
[334499810,1723169439537,-920.46,0.00024109,5]
[334499812,1723169439546,-500.0,0.00024109,5]
[334499814,1723169439555,-2714.88,0.00024109,5]
[334499816,1723169439564,-772.42,0.00024109,5]
[334499818,1723169439574,-2107.73,0.00024109,5]
[334499820,1723169439583,-500.0,0.00024109,5]
[334499822,1723169439593,-500.0,0.00024109,5]
[334499824,1723169439602,-807.03,0.00024109,5]
[334499826,1723169439611,-500.0,0.00024109,5]
[334499828,1723169439620,-887.09,0.00024109,5]
[334499830,1723169439630,-500.0,0.00024109,5]
[334499832,1723169439639,-676.5,0.00024109,5]
[334499834,1723169439648,-1827.1,0.00024109,5]
[334499836,1723169439658,-500.0,0.00024109,5]
[334499838,1723169439667,-2307.17,0.00024109,5]
[334499840,1723169439677,-500.0,0.00024109,5]
[334499842,1723169439686,-1731.14,0.00024109,5]
[334499844,1723169439695,-891.22,0.00024109,5]
[334499846,1723169439704,-500.0,0.00024109,5]
[334499848,1723169439714,-501.41671913,0.00024109,5]
[334499850,1723169439724,-500.0,0.00024109,5]
[334499852,1723169439733,-500.0,0.00024109,5]
[334499854,1723169439742,-1507.18,0.00024109,5]
[334499856,1723169439752,-2387.7,0.00024109,5]
[334499858,1723169439762,-819.61,0.00024109,5]
[334499860,1723169439771,-3928.43,0.00024109,5]
[334499862,1723169439780,-500.0,0.00024109,5]
[334499864,1723169439789,-500.0,0.00024109,5]
[334499866,1723169439798,-500.0,0.00024109,5]
[334499868,1723169439807,-3446.78,0.00024109,5]
[334499870,1723169439817,-608.28,0.00024109,5]
[334499872,1723169439826,-1586.44,0.00024109,5]
[334499874,1723169439835,-512.82,0.00024109,5]
[334499876,1723169439845,-2934.72,0.00024109,5]
[334499878,1723169439854,-500.0,0.00024109,5]
[334499880,1723169439864,-500.0,0.00024109,5]
[334499882,1723169439873,-500.0,0.00024109,5]
[334499883,1723169439883,-2500.36,0.00024109,5]
[334499884,1723169439892,-500.0,0.00024109,5]
[334499885,1723169439901,-1833.33,0.00024109,5]
[334499886,1723169439910,-500.0,0.00024109,5]
[334499887,1723169439919,-500.0,0.00024109,5]
[334499888,1723169439928,-500.0,0.00024109,5]
[334499889,1723169439938,-500.0,0.00024109,5]
[334499890,1723169439947,-1122.68,0.00024109,5]
[334499891,1723169439957,-500.0,0.00024109,5]
[334499892,1723169439966,-500.0,0.00024109,5]
[334499893,1723169439975,-500.0,0.00024109,5]
[334499894,1723169439984,-500.0,0.00024109,5]
[334499895,1723169439993,-1000.0,0.00024109,5]
[334499896,1723169440002,-694.86,0.00024109,5]
[334499897,1723169440012,-500.0,0.00024109,5]
[334499898,1723169440023,-2115.98,0.00024109,5]
[334499899,1723169440033,-592.91,0.00024109,5]
[334499900,1723169440042,-500.0,0.00024109,5]
[334499901,1723169440051,-919.96,0.00024109,5]
[334499902,1723169440061,-500.0,0.00024109,5]
[334499903,1723169440070,-500.0,0.00024109,5]
[334499904,1723169440079,-1664.21,0.00024109,5]
[334499905,1723169440089,-1726.49,0.00024109,5]
[334499906,1723169440099,-557.2,0.00024109,5]
[334499907,1723169440108,-858.77,0.00024109,5]
[334499908,1723169440117,-1753.13,0.00024109,5]
[334499909,1723169440126,-500.0,0.00024109,5]
[334499910,1723169440136,-500.0,0.00024109,5]
[334499911,1723169440145,-639.1,0.00024109,5]
[334499912,1723169440261,-500.0,0.00024109,5]
[334499913,1723169440271,-825.72,0.00024109,5]
[334499914,1723169440280,-500.0,0.00024109,5]
[334499915,1723169440290,-500.0,0.00024109,5]
[334499916,1723169440300,-1078.47,0.00024109,5]
[334499917,1723169440311,-2062.83,0.00024109,5]
[334499918,1723169440321,-500.0,0.00024109,5]
[334499919,1723169440331,-575.24,0.00024109,5]
[334499920,1723169440341,-2890.09,0.00024109,5]
[334499921,1723169440351,-500.0,0.00024109,5]
[334499922,1723169440360,-500.0,0.00024109,5]
[334499923,1723169440369,-3517.92,0.00024109,5]
[334499924,1723169440379,-500.0,0.00024109,5]
[334499925,1723169440388,-915.82,0.00024109,5]
[334499926,1723169440397,-500.0,0.00024109,5]
[334499927,1723169440407,-500.0,0.00024109,5]
[334499928,1723169440416,-500.0,0.00024109,5]
[334499929,1723169440428,-2228.07,0.00024109,5]
[334499930,1723169440437,-500.0,0.00024109,5]
[334499931,1723169440447,-500.0,0.00024109,5]
[334499932,1723169440456,-500.0,0.00024109,5]
[334499933,1723169440465,-869.65,0.00024109,5]
[334499934,1723169440474,-2511.65,0.00024109,5]
[334499935,1723169440483,-975.71,0.00024109,5]
[334499936,1723169440493,-926.84,0.00024109,5]
[334499937,1723169440501,-500.0,0.00024109,5]
[334499938,1723169440511,-500.0,0.00024109,5]
[334499939,1723169440520,-500.0,0.00024109,5]
[334499940,1723169440529,-3329.49,0.00024109,5]
[334499941,1723169440539,-2791.96,0.00024109,5]
[334499942,1723169440549,-500.0,0.00024109,5]
[334499943,1723169440559,-927.73,0.00024109,5]
[334499944,1723169440569,-916.61,0.00024109,5]
[334499945,1723169440579,-1449.12,0.00024109,5]
[334499946,1723169440589,-500.0,0.00024109,5]
[334499947,1723169440600,-3758.88,0.00024109,5]
[334499948,1723169440610,-500.0,0.00024109,5]
[334499949,1723169440622,-501.35768942,0.00024109,5]
[334499950,1723169440633,-500.0,0.00024109,5]
[334499951,1723169440643,-500.0,0.00024109,5]
[334499952,1723169440652,-500.0,0.00024109,2]
[334499953,1723169440664,-500.69177462,0.00024109,5]
[334499954,1723169440674,-500.0,0.00024109,5]
[334499955,1723169440684,-3055.55,0.00024109,5]
[334499956,1723169440694,-500.0,0.00024109,5]
[334499957,1723169440705,-500.9197296,0.00024109,5]
[334499958,1723169440716,-500.0,0.00024109,5]
[334499959,1723169440727,-500.0,0.00024109,5]
[334499960,1723169440737,-3201.67,0.00024109,5]
[334499961,1723169440748,-500.0,0.00024109,5]
[334499962,1723169440757,-500.12923434,0.00024109,5]
[334499963,1723169440770,-501.39681162,0.00024109,5]
[334499964,1723169440779,-2957.65,0.00024109,5]
[334499965,1723169440788,-500.99209539,0.00024109,5]
[334499966,1723169440798,-500.0,0.00024109,5]
[334499967,1723169440807,-500.0,0.00024109,5]
[334499968,1723169440819,-500.0,0.00024109,5]
[334499969,1723169440829,-1217.55,0.00024109,5]
[334499970,1723169440839,-500.0,0.00024109,5]
[334499971,1723169440849,-500.50963299,0.00024109,5]
[334499972,1723169440859,-500.9658379,0.00024109,5]
[334499973,1723169440869,-616.62,0.00024109,5]
[334499974,1723169440880,-3202.97,0.00024109,5]
[334499975,1723169440890,-2616.64,0.00024109,5]
[334499976,1723169440899,-500.22262206,0.00024109,5]
[334499977,1723169440908,-500.0,0.00024109,5]
[334499978,1723169440918,-3863.95,0.00024109,5]
[334499979,1723169440927,-500.20592776,0.00024109,5]
[334499980,1723169440938,-500.19987976,0.00024109,5]
[334499981,1723169440949,-900.44,0.00024109,5]
[334499982,1723169440959,-500.0,0.00024109,5]
[334499983,1723169440968,-501.56506771,0.00024109,5]
[334499984,1723169440978,-500.0,0.00024109,5]
[334499985,1723169440988,-500.0,0.00024109,5]
[334499986,1723169440997,-2523.12,0.00024109,5]
[334499987,1723169441007,-500.5093137,0.00024109,5]
[334499988,1723169441023,-500.0,0.00024109,5]
[334499989,1723169441032,-3842.02,0.00024109,5]
[334499990,1723169441042,-500.0,0.00024109,5]
[334499991,1723169441051,-2715.27,0.00024109,5]
[334499992,1723169441061,-500.0,0.00024109,5]
[334499993,1723169441073,-500.0,0.00024109,5]
[334499994,1723169441083,-683.81,0.00024109,5]
[334499995,1723169441092,-46258.16476961,0.00024109,2]
[334499997,1723169441103,-841.86,0.00024109,5]
[334499999,1723169441113,-500.0,0.00024109,5]
[334500001,1723169441122,-500.33649644,0.00024109,5]
[334500003,1723169441132,-554.8,0.00024109,5]
[334500005,1723169441141,-500.30180363,0.00024109,5]
[334500007,1723169441150,-500.0,0.00024109,5]
[334500009,1723169441159,-543.68,0.00024109,5]
[334500011,1723169441168,-1232.05,0.00024109,5]
[334500013,1723169441177,-500.0,0.00024109,5]
[334500015,1723169441187,-500.0,0.00024109,5]
[334500017,1723169441197,-1992.4,0.00024109,5]
[334500019,1723169441206,-500.0,0.00024109,5]
[334500021,1723169441215,-399.02916198,0.00024109,5]
[334500023,1723169441225,-500.0,0.00024109,5]
[334500025,1723169441235,-156.9352692,0.00024109,5]
[334500027,1723169441245,-500.0,0.00024109,5]
[334500029,1723169441255,-4428.65,0.00024109,5]
[334500031,1723169441267,-500.41805145,0.00024109,5]
[334500033,1723169441276,-350.17462737,0.00024109,5]
[334500035,1723169441285,-500.0,0.00024122,5]
[334500037,1723169441295,-500.0,0.00024122,5]
[334500039,1723169441305,-500.0,0.00024122,5]
[334500041,1723169441314,-503.5191408,0.00024122,5]
[334500043,1723169441323,-1507.18,0.00024122,5]
[334500045,1723169441332,-500.0,0.00024122,5]
[334500047,1723169441342,-500.0,0.00024122,5]
[334500049,1723169441351,-500.0,0.00024122,5]
[334500051,1723169441361,-502.94242154,0.00024122,5]
[334500053,1723169441371,-502.78635716,0.00024122,5]
[334500055,1723169441380,-500.0,0.00024122,5]
[334500057,1723169441390,-500.0,0.00024122,5]
[334500059,1723169441401,-500.0,0.00024122,5]
[334500061,1723169441411,-500.0,0.00024122,5]
[334500063,1723169441420,-500.0,0.00024122,5]
[334500065,1723169441430,-916.61,0.00024122,5]
[334500067,1723169441440,-500.0,0.00024122,2]
[334500069,1723169441450,-500.0,0.00024122,5]
[334500071,1723169441459,-3202.97,0.00024122,5]
[334500073,1723169441469,-900.44,0.00024122,5]
[334500075,1723169441479,-500.0,0.00024122,5]
[334500077,1723169441489,-500.0,0.00024122,5]
[334500079,1723169441500,-543.68,0.00024122,5]
[334500081,1723169441510,-500.0,0.00024122,5]
[334500083,1723169441520,-500.0,0.00024123,5]
[334500085,1723169441529,-500.0,0.00024123,5]
[334500087,1723169441539,-500.0,0.00024123,5]
[334500089,1723169441549,-2978.6,0.00024123,5]
[334500091,1723169441558,-2469.61,0.00024123,5]
[334500093,1723169441568,-1327.89,0.00024123,5]
[334500096,1723169441578,-500.0,0.00024123,5]
[334500098,1723169441589,-801.48,0.00024123,5]
[334500100,1723169441598,-501.21874498,0.00024123,5]
[334500102,1723169441608,-696.32,0.00024123,5]
[334500104,1723169441617,-502.49026941,0.00024123,5]
[334500106,1723169441627,-500.0,0.00024123,5]
[334500108,1723169441637,-500.0,0.00024123,5]
[334500110,1723169441647,-1054.89,0.00024123,5]
[334500112,1723169441657,-900.28,0.00024123,5]
[334500114,1723169441667,-500.0,0.00024123,5]
[334500116,1723169441677,-500.0,0.00024123,5]
[334500118,1723169441687,-1076.54,0.00024123,5]
[334500120,1723169441696,-960.47,0.00024123,5]
[334500122,1723169441706,-795.68,0.00024123,5]
[334500124,1723169441716,-1012.51,0.00024123,5]
[334500125,1723169441725,-868.85,0.00024123,5]
[334500126,1723169441735,-500.0,0.00024123,5]
[334500127,1723169441746,-500.0,0.00024123,5]
[334500128,1723169441755,-155.1306407,0.00024124,2]
[334500129,1723169441767,-1331.11636261,0.00024124,2]
[334500130,1723169441782,-320.76739224,0.00024133,2]
[334500131,1723169441792,-1560.34761417,0.00024154,2]
[334500132,1723169441801,-1000.0,0.000242,2]
[334500133,1723169441811,-150.0,0.00024222,2]
[334500134,1723169441821,-150.0,0.00024223,2]
[334500135,1723169441830,-150.0,0.00024224,2]
[334500136,1723169441840,-150.0,0.00024225,2]
[334500137,1723169441850,-150.0,0.00024226,2]
[334500138,1723169441860,-150.0,0.00024229,2]
[334500139,1723169441870,-150.0,0.0002423,2]
[334500140,1723169441880,-150.0,0.0002423,2]
[334500141,1723169441890,-150.0,0.00024232,2]
[334500142,1723169441899,-150.0,0.00024236,2]
[334500143,1723169441909,-150.0,0.00024237,2]
[334500144,1723169441919,-150.0,0.00024238,2]
[334500145,1723169441929,-150.0,0.00024239,2]
[334500146,1723169441938,-150.0,0.00024242,2]
[334500147,1723169441947,-1500.0,0.00024243,2]
[334500148,1723169441957,-1631.0902837,0.00024244,2]
[334500149,1723169441967,-1500.0,0.00024246,2]
[334500150,1723169441976,-150.0,0.00024246,2]
[334500151,1723169441986,-150.0,0.00024249,2]
[334500152,1723169441995,-150.0,0.00024249,2]
[334500153,1723169442005,-150.0,0.00024251,2]
[334500154,1723169442017,-150.0,0.00024251,2]
[334500155,1723169442031,-150.0,0.00024251,2]
[334500156,1723169442041,-150.0,0.00024253,2]
[334500157,1723169442050,-150.0,0.00024254,2]
[334500158,1723169442060,-150.0,0.00024254,2]
[334500159,1723169442070,-150.0,0.00024254,2]
[334500160,1723169442079,-150.0,0.00024256,2]
[334500161,1723169442089,-150.0,0.00024257,2]
[334500163,1723169442100,-150.0,0.00024259,2]
[334500165,1723169442110,-150.0,0.0002426,2]
[334500167,1723169442119,-150.0,0.00024264,2]
[334500169,1723169442129,-1500.0,0.00024272,2]
[334500171,1723169442138,-150.0,0.00024272,2]
[334500173,1723169442148,-1500.0,0.00024275,2]
[334500175,1723169442157,-150.0,0.00024282,2]
[334500177,1723169442167,-150.0,0.00024284,2]
[334500179,1723169442177,-500.0,0.00024288,5]
[334500181,1723169442187,-6456.68,0.00024288,5]
[334500188,1723169442299,-500.0,0.00024288,5]
[334500189,1723169442308,-500.0,0.00024288,5]
[334500190,1723169442318,-500.0,0.00024288,5]
[334500191,1723169442327,-500.0,0.00024288,5]
[334500192,1723169442336,-500.0,0.00024288,5]
[334500193,1723169442345,-2697.27,0.00024288,5]
[334500194,1723169442355,-1161.67,0.00024288,5]
[334500195,1723169442364,-500.0,0.00024288,5]
[334500196,1723169442373,-3409.1,0.00024288,5]
[334500197,1723169442382,-1406.27,0.00024288,5]
[334500198,1723169442391,-2753.1,0.00024288,5]
[334500199,1723169442401,-2170.45,0.00024288,5]
[334500200,1723169442410,-542.44,0.00024288,5]
[334500201,1723169442419,-3235.97,0.00024288,5]
[334500202,1723169442429,-2522.23,0.00024288,5]
[334500203,1723169442439,-500.0,0.00024288,5]
[334500204,1723169442448,-500.0,0.00024288,5]
[334500205,1723169442458,-1200.24,0.00024288,5]
[334500206,1723169442467,-500.0,0.00024288,5]
[334500207,1723169442476,-990.0,0.00024288,5]
[334500208,1723169442485,-500.0,0.00024288,5]
[334500209,1723169442495,-500.0,0.00024288,5]
[334500210,1723169442504,-500.0,0.00024288,5]
[334500211,1723169442513,-4373.18,0.00024288,5]
[334500212,1723169442522,-1163.23,0.00024288,5]
[334500213,1723169442531,-995.57,0.00024288,5]
[334500214,1723169442540,-1323.81,0.00024288,5]
[334500215,1723169442550,-500.0,0.00024288,5]
[334500216,1723169442559,-738.6,0.00024288,5]
[334500217,1723169442569,-507.49879968,0.00024288,5]
[334500218,1723169442578,-500.0,0.00024288,5]
[334500219,1723169442587,-500.0,0.00024288,5]
[334500220,1723169442597,-500.0,0.00024288,5]
[334500221,1723169442606,-1354.12,0.00024288,5]
[334500222,1723169442615,-500.0,0.00024288,5]
[334500223,1723169442624,-500.0,0.00024288,5]
[334500224,1723169442633,-500.0,0.00024288,5]
[334500225,1723169442644,-500.0,0.00024288,5]
[334500226,1723169442655,-1332.41,0.00024288,5]
[334500227,1723169442666,-500.0,0.00024288,5]
[334500228,1723169442675,-500.0,0.00024288,5]
[334500229,1723169442686,-500.0,0.00024288,5]
[334500230,1723169442697,-965.55,0.00024288,5]
[334500231,1723169442707,-500.0,0.00024288,5]
[334500232,1723169442718,-710.5,0.00024288,5]
[334500233,1723169442729,-500.0,0.00024288,5]
[334500234,1723169442739,-500.0,0.00024288,5]
[334500235,1723169442751,-1117.97,0.00024288,5]
[334500236,1723169442762,-500.0,0.00024288,5]
[334500237,1723169442772,-1473.13,0.00024288,5]
[334500238,1723169442781,-500.0,0.00024288,5]
[334500239,1723169442790,-1301.42,0.00024288,5]
[334500240,1723169442800,-500.0,0.00024288,5]
[334500241,1723169442810,-500.0,0.00024288,5]
[334500242,1723169442820,-1629.88,0.00024288,5]
[334500243,1723169442830,-500.0,0.00024288,5]
[334500244,1723169442839,-500.0,0.00024288,5]
[334500245,1723169442849,-500.0,0.00024288,5]
[334500246,1723169442858,-500.0,0.00024288,5]
[334500247,1723169442868,-500.0,0.00024288,5]
[334500248,1723169442878,-1862.9,0.00024288,5]
[334500249,1723169442888,-503.5604071,0.00024288,5]
[334500250,1723169442898,-675.12,0.00024288,5]
[334500251,1723169442907,-500.0,0.00024288,5]
[334500252,1723169442918,-500.0,0.00024288,5]
[334500253,1723169442927,-500.0,0.00024288,5]
[334500254,1723169442936,-500.0,0.00024288,5]
[334500255,1723169442946,-1813.33,0.00024288,5]
[334500256,1723169442955,-500.0,0.00024288,5]
[334500257,1723169442965,-500.0,0.00024288,5]
[334500258,1723169442975,-500.0,0.00024288,5]
[334500259,1723169442985,-500.0,0.00024288,5]
[334500260,1723169442995,-500.0,0.00024288,5]
[334500261,1723169443005,-500.0,0.00024288,5]
[334500262,1723169443016,-500.0,0.00024288,5]
[334500263,1723169443029,-500.0,0.00024288,5]
[334500264,1723169443039,-500.0,0.00024288,5]
[334500265,1723169443048,-500.0,0.00024288,5]
[334500266,1723169443056,-500.0,0.00024288,5]
[334500267,1723169443067,-500.0,0.00024288,5]
[334500268,1723169443076,-500.0,0.00024288,5]
[334500269,1723169443086,-500.0,0.00024288,5]
[334500270,1723169443095,-500.0,0.00024288,5]
[334500271,1723169443104,-500.0,0.00024288,5]
[334500272,1723169443113,-500.0,0.00024288,5]
[334500273,1723169443123,-501.66870799,0.00024288,5]
[334500274,1723169443133,-500.0,0.00024288,5]
[334500275,1723169443142,-559.86,0.00024288,5]
[334500276,1723169443151,-500.0,0.00024288,5]
[334500277,1723169443160,-500.0,0.00024288,5]
[334500278,1723169443170,-500.0,0.00024288,5]
[334500279,1723169443179,-500.0,0.00024288,5]
[334500280,1723169443188,-500.0,0.00024288,5]
[334500281,1723169443199,-500.0,0.00024288,5]
[334500282,1723169443207,-500.0,0.00024288,5]
[334500283,1723169443216,-502.75851727,0.00024288,5]
[334500284,1723169443227,-500.0,0.00024288,5]
[334500285,1723169443237,-500.0,0.00024288,5]
[334500286,1723169443248,-500.0,0.00024288,5]
[334500287,1723169443260,-1115.79,0.00024288,5]
[334500288,1723169443269,-2618.81,0.00024288,5]
[334500289,1723169443279,-2320.16,0.00024288,5]
[334500290,1723169443287,-1133.13,0.00024288,5]
[334500291,1723169443297,-1043.66,0.00024288,5]
[334500292,1723169443306,-2512.93,0.00024288,5]
[334500293,1723169443315,-920.46,0.00024288,5]
[334500294,1723169443326,-500.0,0.00024288,5]
[334500295,1723169443337,-2714.88,0.00024288,5]
[334500296,1723169443346,-772.42,0.00024288,5]
[334500297,1723169443356,-2107.73,0.00024288,5]
[334500298,1723169443368,-500.0,0.00024288,5]
[334500299,1723169443378,-500.0,0.00024288,5]
[334500300,1723169443391,-807.03,0.00024288,5]
[334500301,1723169443403,-500.0,0.00024288,5]
[334500302,1723169443414,-887.09,0.00024288,5]
[334500303,1723169443425,-500.0,0.00024288,5]
[334500304,1723169443436,-676.5,0.00024288,5]
[334500305,1723169443447,-1827.1,0.00024288,5]
[334500306,1723169443458,-2307.17,0.00024288,5]
[334500307,1723169443467,-500.0,0.00024288,5]
[334500308,1723169443477,-1731.14,0.00024288,5]
[334500309,1723169443486,-500.0,0.00024288,5]
[334500310,1723169443495,-891.22,0.00024288,5]
[334500311,1723169443504,-500.0,0.00024288,5]
[334500313,1723169443515,-500.0,0.00024288,5]
[334500315,1723169443524,-2387.7,0.00024288,5]
[334500316,1723169443533,-819.61,0.00024288,5]
[334500317,1723169443543,-500.0,0.00024288,5]
[334500318,1723169443553,-3928.43,0.00024288,5]
[334500319,1723169443563,-500.0,0.00024288,5]
[334500320,1723169443573,-500.0,0.00024288,5]
[334500321,1723169443582,-608.28,0.00024288,5]
[334500322,1723169443591,-3446.78,0.00024288,5]
[334500323,1723169443600,-1586.44,0.00024288,5]
[334500324,1723169443609,-512.82,0.00024288,5]
[334500325,1723169443619,-2934.72,0.00024288,5]
[334500326,1723169443628,-500.0,0.00024288,5]
[334500327,1723169443638,-500.0,0.00024288,5]
[334500328,1723169443647,-2500.36,0.00024288,5]
[334500329,1723169443655,-500.0,0.00024288,5]
[334500330,1723169443665,-1833.33,0.00024288,5]
[334500331,1723169443674,-500.0,0.00024288,5]
[334500332,1723169443683,-500.0,0.00024288,5]
[334500333,1723169443692,-500.0,0.00024288,5]
[334500334,1723169443701,-1122.68,0.00024288,5]
[334500335,1723169443710,-500.0,0.00024288,5]
[334500336,1723169443719,-500.0,0.00024288,5]
[334500337,1723169443730,-500.0,0.00024288,5]
[334500338,1723169443739,-1000.0,0.00024288,5]
[334500339,1723169443748,-694.86,0.00024288,5]
[334500340,1723169443758,-2115.98,0.00024288,5]
[334500341,1723169443768,-500.0,0.00024288,5]
[334500342,1723169443777,-592.91,0.00024288,5]
[334500343,1723169443786,-919.96,0.00024288,5]
[334500344,1723169443795,-500.0,0.00024288,5]
[334500345,1723169443804,-500.0,0.00024288,5]
[334500346,1723169443813,-1664.21,0.00024288,5]
[334500347,1723169443823,-1726.49,0.00024288,5]
[334500348,1723169443834,-557.2,0.00024288,5]
[334500349,1723169443844,-858.77,0.00024288,5]
[334500350,1723169443855,-1753.13,0.00024288,5]
[334500351,1723169443867,-500.0,0.00024288,5]
[334500352,1723169443876,-500.0,0.00024288,5]
[334500353,1723169443885,-639.1,0.00024288,5]
[334500354,1723169443894,-825.72,0.00024288,5]
[334500355,1723169443904,-500.0,0.00024288,5]
[334500356,1723169443913,-1078.47,0.00024288,5]
[334500357,1723169443923,-2062.83,0.00024288,5]
[334500358,1723169443932,-500.0,0.00024288,5]
[334500359,1723169443942,-575.24,0.00024288,5]
[334500360,1723169443951,-2890.09,0.00024288,5]
[334500361,1723169443960,-500.0,0.00024288,5]
[334500362,1723169443969,-3517.92,0.00024288,5]
[334500363,1723169443978,-915.82,0.00024288,5]
[334500364,1723169443987,-500.0,0.00024288,5]
[334500365,1723169443997,-500.0,0.00024288,5]
[334500366,1723169444007,-2228.07,0.00024288,5]
[334500367,1723169444016,-500.0,0.00024288,5]
[334500368,1723169444029,-500.0,0.00024288,5]
[334500369,1723169444137,-500.0,0.00024288,5]